fUSD/lending_fUSD_20241121
["ID","MTS","AMOUNT","RATE_DAILY","PERIOD"]
[342865738,1732189849399,-500.0,0.00041095,18]
[342865740,1732189849408,-582.9,0.00041095,18]
[342865742,1732189849418,-550.08,0.00041095,18]
[342865744,1732189849429,-1582.74,0.00041095,18]
[342865745,1732189849439,-500.0,0.00041095,18]
[342865748,1732189849449,-500.0,0.00041095,18]
[342865750,1732189849459,-500.0,0.00041095,18]
[342865752,1732189849468,-651.52,0.00041095,18]
[342865754,1732189849478,-698.96,0.00041095,18]
[342865756,1732189849487,-3881.63,0.00041095,18]
[342865758,1732189849497,-500.0,0.00041095,18]
[342865759,1732189849507,-500.0,0.00041095,18]
[342865762,1732189849517,-1637.99,0.00041095,120]
[342865764,1732189849526,-1871.1,0.00041095,18]
[342865765,1732189849535,-500.0,0.00041095,18]
[342865767,1732189849545,-1098.21,0.00041095,18]
[342865769,1732189849554,-2484.53,0.00041095,18]
[342865771,1732189849564,-2436.73,0.00041095,18]
[342865773,1732189849574,-500.0,0.00041095,18]
[342865774,1732189849583,-500.0,0.00041095,18]
[342865775,1732189849592,-1567.85,0.00041095,18]
[342865776,1732189849601,-1768.68,0.00041095,18]
[342865777,1732189849611,-1447.08,0.00041095,18]
[342865778,1732189849620,-572.44,0.00041095,18]
[342865779,1732189849629,-4586.56,0.00041095,18]
[342865780,1732189849640,-500.0,0.00041095,18]
[342865781,1732189849649,-1620.15,0.00041095,18]
[342865782,1732189849659,-500.0,0.00041095,18]
[342865783,1732189849668,-619.11,0.00041095,18]
[342865784,1732189849678,-500.0,0.00041095,18]
[342865785,1732189849687,-394.13107755,0.00041095,18]
[342865786,1732189849697,-500.0,0.00041095,18]
[342865787,1732189849706,-500.09953804,0.00041095,18]
[342865788,1732189849716,-500.0,0.00041095,18]
[342865789,1732189849726,-513.87,0.00041095,18]
[342865790,1732189849735,-500.0,0.00041095,18]
[342865791,1732189849745,-4020.32,0.00041095,18]
[342865792,1732189849755,-500.0,0.00041095,18]
[342865793,1732189849765,-500.0,0.00041095,18]
[342865794,1732189849774,-1565.83,0.00041095,18]
[342865795,1732189849784,-593.97,0.00041095,18]
[342865796,1732189849794,-500.0,0.00041095,18]
[342865797,1732189849804,-596.12,0.00041095,18]
[342865798,1732189849813,-4712.74,0.00041095,18]
[342865799,1732189849823,-500.0,0.00041095,18]
[342865800,1732189849832,-1148.91,0.00041095,18]
[342865801,1732189849843,-2032.25,0.00041095,18]
[342865802,1732189849853,-500.0,0.00041095,18]
[342865803,1732189849863,-544.54,0.00041095,18]
[342865804,1732189849873,-500.0,0.00041095,18]
[342865805,1732189849882,-613.43,0.00041095,18]
[342865806,1732189849894,-500.0,0.00041095,18]
[342865807,1732189850246,-151.0,0.00041095,14]
[342865808,1732189850256,-151.0,0.00041095,14]
[342865809,1732189850265,-500.0,0.00041095,18]
[342865810,1732189850275,-500.0,0.00041095,18]
[342865811,1732189850285,-500.0,0.00041095,18]
[342865812,1732189850295,-7872.71,0.00041095,18]
[342865813,1732189850304,-2327.69,0.00041095,18]
[342865814,1732189850314,-500.0,0.00041095,18]
[342865815,1732189850324,-500.0,0.00041095,18]
[342865816,1732189850333,-3018.48,0.00041095,18]
[342865817,1732189850343,-500.0,0.00041095,18]
[342865818,1732189850353,-500.0,0.00041095,18]
[342865819,1732189850362,-500.0,0.00041095,18]
[342865820,1732189850372,-564.49,0.00041095,18]
[342865821,1732189850381,-5196.4,0.00041095,18]
[342865822,1732189850391,-1276.87,0.00041095,18]
[342865823,1732189850401,-7206.61,0.00041095,18]
[342865824,1732189850411,-500.0,0.00041095,18]
[342865825,1732189850420,-712.38,0.00041095,18]
[342865826,1732189850430,-500.0,0.00041095,18]
[342865827,1732189850440,-1681.4,0.00041095,18]
[342865828,1732189850450,-500.0,0.00041095,18]
[342865829,1732189850460,-3627.02,0.00041095,18]
[342865830,1732189850470,-500.0,0.00041095,18]
[342865831,1732189850480,-1660.62,0.00041095,18]
[342865832,1732189850490,-258.224998,0.00041095,14]
[342865833,1732189850499,-500.0,0.00041095,18]
[342865834,1732189850508,-500.0,0.00041095,18]
[342865835,1732189850518,-1806.44,0.00041095,18]
[342865836,1732189850528,-500.0,0.00041095,18]
[342865837,1732189850537,-500.0,0.00041095,18]
[342865838,1732189850546,-415.08637927,0.00041095,18]
[342865839,1732189850556,-500.0,0.00041095,18]
[342865840,1732189850565,-11747.3,0.00041095,18]
[342865841,1732189850574,-500.0,0.00041095,18]
[342865842,1732189850583,-1018.58,0.00041095,18]
[342865843,1732189850592,-927.21,0.00041095,18]
[342865844,1732189850602,-533.28,0.00041095,18]
[342865845,1732189850611,-500.0,0.00041095,18]
[342865846,1732189850623,-1442.66,0.00041095,18]
[342865847,1732189850633,-931.25,0.00041095,18]
[342865848,1732189850643,-500.0,0.00041095,18]
[342865849,1732189850653,-500.0,0.00041095,18]
[342865850,1732189850662,-1758.3,0.00041095,18]
[342865851,1732189850672,-1417.72,0.00041095,18]
[342865852,1732189850683,-500.17159943,0.00041095,18]
[342865853,1732189850693,-2319.62,0.00041095,18]
[342865854,1732189850702,-11933.23,0.00041095,18]
[342865855,1732189850712,-500.0,0.00041095,18]
[342865856,1732189850724,-532.75,0.00041095,18]
[342865857,1732189850736,-766.76,0.00041095,18]
[342865858,1732189850745,-930.37,0.00041095,18]
[342865859,1732189850755,-500.0,0.00041095,18]
[342865860,1732189850764,-500.0,0.00041095,18]
[342865861,1732189850774,-1228.47,0.00041095,7]
[342865862,1732189850784,-500.0,0.00041095,18]
[342865863,1732189850794,-700.0,0.00041095,18]
[342865864,1732189850803,-500.0,0.00041095,18]
[342865865,1732189850813,-997.29,0.00041095,18]
[342865866,1732189850823,-1013.23,0.00041095,18]
[342865867,1732189850833,-675.24,0.00041095,18]
[342865868,1732189850842,-500.0,0.00041095,18]
[342865869,1732189850852,-500.0,0.00041095,18]
[342865870,1732189850861,-335.44281191,0.00041095,120]
[342865871,1732189850870,-4020.28,0.00041095,18]
[342865872,1732189850880,-500.0,0.00041095,18]
[342865873,1732189850890,-500.0,0.00041095,18]
[342865874,1732189850900,-500.0,0.00041095,18]
[342865875,1732189850910,-13202.45,0.00041095,18]
[342865876,1732189850924,-500.0,0.00041095,18]
[342865877,1732189850933,-1186.15,0.00041095,18]
[342865878,1732189850943,-500.0,0.00041095,18]
[342865879,1732189850953,-545.72,0.00041095,18]
[342865880,1732189850964,-2666.59,0.00041095,18]
[342865881,1732189850973,-946.9,0.00041095,18]
[342865882,1732189850983,-719.93,0.00041095,18]
[342865883,1732189850992,-500.0,0.00041095,18]
[342865884,1732189851005,-500.0,0.00041095,18]
[342865885,1732189851014,-877.93,0.00041095,18]
[342865886,1732189851024,-1376.18,0.00041095,18]
[342865887,1732189851033,-500.0,0.00041095,18]
[342865888,1732189851042,-500.0,0.00041095,18]
[342865889,1732189851052,-500.0,0.00041095,18]
[342865890,1732189851061,-500.0,0.00041095,18]
[342865891,1732189851070,-500.0,0.00041095,18]
[342865892,1732189851080,-14468.44,0.00041095,18]
[342865893,1732189851089,-5787.83,0.00041095,18]
[342865894,1732189851099,-500.0,0.00041095,18]
[342865895,1732189851108,-233.88498722,0.00041095,18]
[342865896,1732189851118,-500.0,0.00041095,18]
[342865897,1732189851127,-697.07,0.00041095,18]
[342865898,1732189851136,-805.41,0.00041095,18]
[342865899,1732189851148,-500.0,0.00041095,18]
[342865900,1732189851157,-3418.39,0.00041095,18]
[342865901,1732189851167,-3873.91,0.00041095,18]
[342865902,1732189851177,-500.0,0.00041095,18]
[342865903,1732189851187,-500.0,0.00041095,18]
[342865904,1732189851197,-500.0,0.00041095,18]
[342865905,1732189851206,-500.0,0.00041095,18]
[342865906,1732189851216,-4908.1,0.00041095,18]
[342865907,1732189851227,-3451.68,0.00041095,18]
[342865908,1732189851237,-151.0,0.00041095,14]
[342865909,1732189851247,-151.0,0.00041095,14]
[342865910,1732189851257,-500.0,0.00041095,18]
[342865911,1732189851267,-500.0,0.00041095,18]
[342865912,1732189851276,-500.0,0.00041095,18]
[342865913,1732189851286,-500.0,0.00041095,18]
[342865914,1732189851296,-3954.94,0.00041095,18]
[342865915,1732189851305,-2609.31,0.00041095,18]
[342865916,1732189851315,-1172.56,0.00041095,18]
[342865917,1732189851325,-500.0,0.00041095,18]
[342865918,1732189851335,-500.0,0.00041095,18]
[342865919,1732189851345,-810.04,0.00041095,18]
[342865920,1732189851360,-500.0,0.00041095,18]
[342865921,1732189851370,-1027.22,0.00041095,18]
[342865922,1732189851380,-500.0,0.00041095,18]
[342865923,1732189851389,-500.0,0.00041095,18]
[342865924,1732189851399,-500.0,0.00041095,18]
[342865925,1732189851409,-500.0,0.00041095,18]
[342865926,1732189851420,-2504.88,0.00041095,18]
[342865927,1732189851429,-603.75,0.00041095,18]
[342865928,1732189851439,-1764.73,0.00041095,18]
[342865929,1732189851449,-3735.74,0.00041095,18]
[342865930,1732189851459,-748.77,0.00041095,18]
[342865931,1732189851470,-1623.0,0.00041095,18]
[342865932,1732189851480,-221.02879294,0.00041095,18]
[342865933,1732189851490,-1038.75,0.00041095,18]
[342865934,1732189851501,-2696.16,0.00041095,18]
[342865935,1732189851512,-500.0,0.00041095,120]
[342865936,1732189851524,-500.0,0.00041095,120]
[342865937,1732189851534,-500.0,0.00041095,120]
[342865938,1732189851543,-3232.89,0.00041095,18]
[342865939,1732189851553,-500.0,0.00041095,120]
[342865940,1732189851562,-500.0,0.00041095,18]
[342865941,1732189851572,-500.0,0.00041095,120]
[342865942,1732189851582,-555.02,0.00041095,18]
[342865943,1732189851591,-500.0,0.00041095,120]
[342865944,1732189851601,-500.0,0.00041095,18]
[342865945,1732189851611,-433.33,0.00041096,2]
[342865946,1732189851620,-363.0,0.000411,30]
[342865947,1732189851630,-1000.0,0.000411,30]
[342865948,1732189851640,-229.0,0.000411,30]
[342865949,1732189851651,-150.0,0.00041102,2]
[342865950,1732189851660,-150.0,0.00041104,2]
[342865951,1732189851670,-150.0,0.00041106,2]
[342865952,1732189851679,-150.0,0.00041107,2]
[342865953,1732189851689,-1500.0,0.0004111,7]
[342865954,1732189851699,-150.0,0.00041112,2]
[342865955,1732189851708,-150.0,0.00041123,2]
[342865956,1732189851719,-150.0,0.00041135,2]
[342865957,1732189851730,-150.0,0.00041141,2]
[342865958,1732189851740,-150.0,0.00041144,2]
[342865959,1732189851750,-12188.97944185,0.0004115,15]
[342865960,1732189851759,-3999.69987359,0.0004115,15]
[342865961,1732189851768,-150.0,0.00041153,2]
[342865962,1732189851778,-150.0,0.00041156,2]
[342865963,1732189851787,-150.0,0.00041162,2]
[342865964,1732189851796,-150.0,0.00041162,2]
[342865965,1732189851806,-1500.0,0.00041173,7]
[342865966,1732189851815,-150.0,0.00041174,2]
[342865967,1732189851824,-300.0,0.00041174,2]
[342865968,1732189851834,-150.0,0.00041176,2]
[342865969,1732189851843,-150.0,0.00041178,2]
[342865970,1732189851852,-1695.12040094,0.0004118,2]
[342865971,1732189851862,-150.0,0.00041182,2]
[342865972,1732189851871,-150.0,0.00041186,2]
[342865973,1732189851881,-150.0,0.00041188,2]
[342865974,1732189851890,-150.0,0.00041198,2]
[342865975,1732189851901,-150.0,0.00041199,2]
[342865976,1732189851911,-1500.0,0.00041207,7]
[342865977,1732189851925,-150.0,0.0004121,2]
[342865978,1732189851935,-150.0,0.00041212,2]
[342865979,1732189851946,-300.0,0.00041218,2]
[342865980,1732189851955,-1500.0,0.00041218,7]
[342865981,1732189851965,-150.0,0.00041221,2]
[342865982,1732189851975,-150.0,0.00041222,2]
[342865983,1732189851984,-150.0,0.00041223,2]
[342865984,1732189851995,-150.0,0.00041227,2]
[342865985,1732189852006,-150.0,0.00041228,2]
[342865986,1732189852016,-300.0,0.00041233,30]
[342865987,1732189852026,-150.0,0.00041239,2]
[342865988,1732189852035,-150.0,0.00041242,2]
[342865989,1732189852044,-151.88493693,0.00041243,7]
[342865990,1732189852054,-150.0,0.00041247,2]
[342865991,1732189852064,-1500.0,0.00041254,7]
[342865992,1732189852073,-150.0,0.00041262,2]
[342865993,1732189852083,-151.0,0.00041268,14]
[342865994,1732189852092,-1752.72918,0.00041268,14]
[342865995,1732189852102,-1752.72918,0.00041268,14]
[342865996,1732189852112,-151.0,0.00041268,14]
[342865997,1732189852121,-151.0,0.00041268,14]
[342865998,1732189852132,-151.0,0.00041268,14]
[342865999,1732189852143,-500.0,0.00041268,120]
[342866000,1732189852153,-500.0,0.00041268,120]
[342866001,1732189852163,-13467.91003728,0.00041268,2]
[342866002,1732189852172,-500.0,0.00041269,2]
[342866003,1732189852183,-1000.0,0.00041269,2]
[342866004,1732189852193,-437688.9364,0.00041269,2]
[342866005,1732189852202,-5451.6585,0.00041269,2]
[342866006,1732189852212,-4073.0908,0.00041269,2]
[342866007,1732189852221,-900.1402,0.00041269,2]
[342866008,1732189852231,-151.0,0.00041269,14]
[342866009,1732189852241,-151.0,0.00041269,14]
[342866010,1732189852251,-151.0,0.00041269,14]
[342866011,1732189852260,-151.0,0.00041269,14]
[342866012,1732189852271,-151.0,0.00041269,14]
[342866013,1732189852281,-282.592639,0.00041269,14]
[342866014,1732189852291,-450.961893,0.00041269,14]
[342866015,1732189852300,-450.961893,0.00041269,14]
[342866016,1732189852310,-151.0,0.00041269,14]
[342866017,1732189852321,-1752.72918,0.00041269,14]
[342866018,1732189852331,-912.961485,0.00041269,14]
[342866019,1732189852340,-1752.72918,0.00041269,14]
[342866020,1732189852350,-912.961485,0.00041269,14]
[342866021,1732189852360,-271.3746608,0.00041269,2]
[342866022,1732189852369,-151.0,0.00041269,14]
[342866023,1732189852378,-151.0,0.00041269,14]
[342866024,1732189852388,-150.0,0.00041276,2]
[342866025,1732189852401,-500.0,0.00041279,120]
[342866026,1732189852411,-572046.49017549,0.0004128,2]
[342866027,1732189852420,-151.0,0.0004128,14]
[342866028,1732189852430,-151.0,0.0004128,14]
[342866029,1732189852439,-151.0,0.0004128,14]
[342866030,1732189852448,-151.0,0.0004128,14]
[342866031,1732189852458,-402.6937,0.0004128,14]
[342866032,1732189852468,-402.6937,0.0004128,14]
[342866033,1732189852477,-150.0,0.0004128,2]
[342866034,1732189852487,-151.0,0.0004128,14]
[342866035,1732189852496,-151.0,0.0004128,14]
[342866036,1732189852506,-151.0,0.0004128,14]
[342866037,1732189852515,-216.93103,0.0004128,14]
[342866038,1732189852524,-450.961893,0.0004128,14]
[342866039,1732189852535,-450.961893,0.0004128,14]
[342866040,1732189852544,-151.0,0.0004128,14]
[342866041,1732189852554,-1752.72918,0.0004128,14]
[342866042,1732189852563,-912.961485,0.0004128,14]
[342866043,1732189852573,-1752.72918,0.0004128,14]
[342866044,1732189852582,-912.961485,0.0004128,14]
[342866045,1732189852592,-151.0,0.0004128,14]
[342866046,1732189852601,-150.0,0.00041294,2]
[342866047,1732189852611,-150.0,0.00041299,2]
[342866048,1732189852714,-1500.0,0.00041312,7]
[342866049,1732189852724,-150.0,0.00041313,2]
[342866050,1732189852733,-150.0,0.00041314,2]
[342866051,1732189852743,-150.0,0.00041317,2]
[342866052,1732189852752,-150.0,0.00041321,2]
[342866053,1732189852762,-150.0,0.00041327,2]
[342866054,1732189852771,-150.0,0.00041327,2]
[342866055,1732189852780,-150.0,0.00041328,2]
[342866056,1732189852790,-150.0,0.00041339,2]
[342866057,1732189852800,-150.0,0.00041342,30]
[342866058,1732189852809,-150.0,0.00041342,30]
[342866059,1732189852818,-150.96,0.00041342,30]
[342866060,1732189852827,-365.52,0.00041342,30]
[342866061,1732189852836,-150.0,0.00041343,2]
[342866062,1732189852845,-150.0,0.00041344,2]
[342866063,1732189852854,-1500.0,0.00041344,7]
[342866064,1732189852863,-150.45254273,0.00041345,2]
[342866065,1732189852872,-150.0,0.00041346,2]
[342866066,1732189852882,-150.0,0.00041351,2]
[342866067,1732189852893,-150.0,0.00041353,2]
[342866068,1732189852908,-1000.0,0.00041355,2]
[342866069,1732189852920,-150.0,0.00041356,30]
[342866070,1732189852929,-1500.0,0.00041358,7]
[342866071,1732189852938,-200.0,0.0004136,60]
[342866072,1732189852947,-264.83703979,0.00041362,2]
[342866073,1732189852957,-150.0,0.00041363,2]
[342866074,1732189852967,-150.0,0.00041367,2]
[342866075,1732189852976,-151.0,0.00041368,14]
[342866076,1732189852986,-151.0,0.00041368,14]
[342866077,1732189852995,-256.71704,0.00041368,14]
[342866078,1732189853005,-500.0,0.00041368,2]
[342866079,1732189853015,-500.0,0.00041368,2]
[342866080,1732189853025,-500.0,0.00041368,2]
[342866081,1732189853034,-500.0,0.00041368,2]
[342866082,1732189853044,-282.90001904,0.00041368,2]
[342866083,1732189853053,-151.0,0.00041368,14]
[342866084,1732189853063,-450.961893,0.00041368,14]
[342866085,1732189853073,-450.961893,0.00041368,14]
[342866086,1732189853082,-912.961485,0.00041368,14]
[342866087,1732189853092,-912.961485,0.00041368,14]
[342866088,1732189853101,-696.6,0.00041369,18]
[342866089,1732189853111,-500.0,0.00041369,18]
[342866090,1732189853120,-500.0,0.00041369,18]
[342866091,1732189853129,-500.0,0.00041369,18]
[342866092,1732189853138,-257.79210394,0.00041369,18]
[342866093,1732189853154,-500.0,0.00041369,18]
[342866094,1732189853163,-500.0,0.00041369,18]
[342866095,1732189853173,-500.0,0.00041369,18]
[342866096,1732189853182,-500.0,0.00041369,18]
[342866097,1732189853192,-547.61061265,0.00041369,18]
[342866098,1732189853201,-500.0,0.00041369,18]
[342866099,1732189853210,-500.0,0.00041369,18]
[342866100,1732189853219,-500.0,0.00041369,18]
[342866101,1732189853229,-500.0,0.00041369,18]
[342866102,1732189853238,-500.0,0.00041369,18]
[342866103,1732189853248,-236.04948304,0.00041369,18]
[342866104,1732189853257,-500.0,0.00041369,18]
[342866105,1732189853267,-500.0,0.00041369,18]
[342866106,1732189853276,-151.0,0.00041369,14]
[342866107,1732189853286,-500.0,0.00041369,18]
[342866108,1732189853296,-893.89,0.00041369,18]
[342866109,1732189853306,-500.0,0.00041369,18]
[342866110,1732189853316,-500.0,0.00041369,18]
[342866111,1732189853326,-500.0,0.00041369,18]
[342866112,1732189853335,-566.69,0.00041369,18]
[342866113,1732189853344,-731.09,0.00041369,18]
[342866114,1732189853354,-501.8,0.00041369,18]
[342866115,1732189853364,-500.0,0.00041369,18]
[342866116,1732189853374,-500.0,0.00041369,18]
[342866117,1732189853384,-1344.138509,0.00041369,18]
[342866118,1732189853396,-224.156426,0.00041369,18]
[342866119,1732189853405,-154.589909,0.00041369,18]
[342866120,1732189853414,-853.24,0.00041369,18]
[342866121,1732189853424,-500.0,0.00041369,18]
[342866122,1732189853433,-1293.78,0.00041369,18]
[342866123,1732189853443,-500.0,0.00041369,18]
[342866124,1732189853452,-500.0,0.00041369,18]
[342866125,1732189853462,-500.0,0.00041369,18]
[342866126,1732189853471,-500.0,0.00041369,18]
[342866127,1732189853481,-500.0,0.00041369,18]
[342866128,1732189853491,-649.49,0.00041369,18]
[342866129,1732189853501,-500.0,0.00041369,18]
[342866130,1732189853510,-564.08,0.00041369,18]
[342866131,1732189853520,-807.98,0.00041369,18]
[342866132,1732189853530,-500.0,0.00041369,18]
[342866133,1732189853540,-500.0,0.00041369,18]
[342866134,1732189853551,-500.0,0.00041369,18]
[342866135,1732189853562,-957.5,0.00041369,18]
[342866136,1732189853571,-500.0,0.00041369,18]
[342866137,1732189853581,-500.0,0.00041369,18]
[342866138,1732189853591,-776.01,0.00041369,18]
[342866139,1732189853601,-534.76,0.00041369,18]
[342866140,1732189853611,-723.01,0.00041369,18]
[342866141,1732189853620,-500.0,0.00041369,18]
[342866142,1732189853630,-500.0,0.00041369,18]
[342866143,1732189853639,-1227.8,0.00041369,18]
[342866144,1732189853652,-500.0,0.00041369,18]
[342866145,1732189853661,-500.0,0.00041369,18]
[342866146,1732189853671,-1614.75,0.00041369,18]
[342866147,1732189853680,-1559.84,0.00041369,18]
[342866148,1732189853690,-500.0,0.00041369,18]
[342866149,1732189853700,-500.0,0.00041369,18]
[342866150,1732189853709,-500.0,0.00041369,18]
[342866151,1732189853719,-1779.08,0.00041369,18]
[342866152,1732189853729,-500.0,0.00041369,18]
[342866153,1732189853738,-500.0,0.00041369,18]
[342866154,1732189853748,-735.36,0.00041369,18]
[342866155,1732189853758,-1466.69,0.00041369,18]
[342866156,1732189853768,-500.0,0.00041369,18]
[342866157,1732189853778,-515.73368105,0.00041369,18]
[342866158,1732189853789,-500.0,0.00041369,18]
[342866159,1732189853798,-541.82,0.00041369,18]
[342866160,1732189853808,-500.0,0.00041369,18]
[342866161,1732189853818,-243.67270589,0.00041369,18]
[342866162,1732189853827,-1079.56,0.00041369,18]
[342866163,1732189853837,-500.0,0.00041369,18]
[342866164,1732189853847,-723.81,0.00041369,18]
[342866165,1732189853856,-502.99,0.00041369,18]
[342866166,1732189853866,-500.0,0.00041369,18]
[342866167,1732189853875,-500.0,0.00041369,18]
[342866168,1732189853885,-572.9484315,0.00041369,18]
[342866169,1732189853901,-500.0,0.00041369,18]
[342866170,1732189853912,-500.0,0.00041369,18]
[342866171,1732189853928,-813.37,0.00041369,18]
[342866172,1732189853939,-2948.74,0.00041369,18]
[342866173,1732189853948,-500.0,0.00041369,18]
[342866174,1732189853959,-500.0,0.00041369,18]
[342866175,1732189853969,-535.23,0.00041369,18]
[342866176,1732189853978,-185.386181,0.00041369,14]
[342866177,1732189853989,-500.0,0.00041369,18]
[342866178,1732189853999,-500.0,0.00041369,18]
[342866179,1732189854009,-566.09,0.00041369,18]
[342866180,1732189854018,-500.0,0.00041369,18]
[342866181,1732189854028,-500.0,0.00041369,18]
[342866182,1732189854037,-500.0,0.00041369,18]
[342866183,1732189854046,-609.54,0.00041369,18]
[342866184,1732189854055,-1065.06,0.00041369,18]
[342866185,1732189854065,-2810.44,0.00041369,18]
[342866186,1732189854075,-850.0,0.00041369,120]
[342866187,1732189854084,-640.69370508,0.00041369,18]
[342866188,1732189854094,-500.0,0.00041369,18]
[342866189,1732189854104,-507.40144116,0.00041369,18]
[342866190,1732189854114,-632.79,0.00041369,18]
[342866191,1732189854124,-702.2,0.00041369,18]
[342866192,1732189854134,-500.0,0.00041369,18]
[342866193,1732189854145,-500.0,0.00041369,18]
[342866194,1732189854154,-500.0,0.00041369,18]
[342866195,1732189854164,-500.0,0.00041369,18]
[342866196,1732189854174,-2169.86,0.00041369,18]
[342866197,1732189854183,-500.0,0.00041369,18]
[342866198,1732189854192,-500.0,0.00041369,18]
[342866199,1732189854202,-500.0,0.00041369,18]
[342866200,1732189854212,-500.0,0.00041369,18]
[342866201,1732189854222,-500.0,0.00041369,18]
[342866202,1732189854232,-500.0,0.00041369,18]
[342866203,1732189854241,-500.0,0.00041369,18]
[342866204,1732189854252,-924.54,0.00041369,18]
[342866205,1732189854261,-500.0,0.00041369,18]
[342866206,1732189854271,-885.13,0.00041369,18]
[342866207,1732189854281,-517.07304624,0.00041369,18]
[342866208,1732189854291,-500.0,0.00041369,18]
[342866209,1732189854301,-500.0,0.00041369,18]
[342866210,1732189854311,-500.0,0.00041369,18]
[342866211,1732189854321,-609.98,0.00041369,18]
[342866213,1732189854332,-613.3,0.00041369,18]
[342866214,1732189854342,-500.0,0.00041369,18]
[342866215,1732189854352,-500.0,0.00041369,18]
[342866216,1732189854362,-500.0,0.00041369,18]
[342866217,1732189854372,-500.0,0.00041369,18]
[342866218,1732189854382,-337.73,0.00041369,7]
[342866219,1732189854393,-500.0,0.00041369,18]
[342866220,1732189854403,-730.55,0.00041369,18]
[342866221,1732189854413,-906.13,0.00041369,18]
[342866222,1732189854422,-500.0,0.00041369,18]
[342866223,1732189854432,-1513.79,0.00041369,18]
[342866224,1732189854442,-500.0,0.00041369,18]
[342866225,1732189854452,-500.0,0.00041369,18]
[342866226,1732189854462,-500.0,0.00041369,18]
[342866227,1732189854472,-500.0,0.00041369,18]
[342866228,1732189854481,-500.0,0.00041369,18]
[342866229,1732189854490,-514.74,0.00041369,18]
[342866230,1732189854500,-1037.26,0.00041369,18]
[342866231,1732189854510,-1033.85,0.00041369,18]
[342866232,1732189854519,-500.0,0.00041369,18]
[342866233,1732189854529,-500.0,0.00041369,18]
[342866234,1732189854538,-857.95,0.00041369,18]
[342866235,1732189854547,-733.3,0.00041369,18]
[342866236,1732189854557,-500.0,0.00041369,18]
[342866237,1732189854567,-1707.77,0.00041369,18]
[342866238,1732189854577,-500.0,0.00041369,18]
[342866239,1732189854586,-500.0,0.00041369,18]
[342866240,1732189854596,-680.17,0.00041369,18]
[342866241,1732189854606,-500.0,0.00041369,18]
[342866242,1732189854615,-1204.8,0.00041369,18]
[342866243,1732189854625,-500.0,0.00041369,18]
[342866244,1732189854634,-500.0,0.00041369,18]
[342866245,1732189854644,-583.21,0.00041369,18]
[342866246,1732189854654,-539.71,0.00041369,18]
[342866247,1732189854663,-718.33,0.00041369,18]
[342866248,1732189854672,-799.88,0.00041369,18]
[342866249,1732189854681,-507.36616087,0.00041369,18]
[342866250,1732189854690,-1489.65,0.00041369,18]
[342866251,1732189854699,-1673.07,0.00041369,18]
[342866252,1732189854709,-832.94,0.00041369,18]
[342866253,1732189854718,-500.0,0.00041369,18]
[342866254,1732189854727,-500.0,0.00041369,18]
[342866255,1732189854737,-151.0,0.00041369,14]